bitfinex-derivatives/quotes_SOLF0:USTF0_20260315
["timestamp","ask_amount","ask_price","bid_price","bid_amount"]
[1773569175616,4.04374072,88.481,88.439,3.65806297]
[1773569176616,4.04374072,88.479,88.439,3.65806297]
[1773569182323,3.913253,88.474,88.427,14.11143222]
[1773569182619,3.913253,88.474,88.427,3.93543222]
[1773569183519,3.913253,88.464,88.427,3.93543222]
[1773569183718,3.913253,88.464,88.409,3.93543222]
[1773569184524,3.913253,88.461,88.41,3.93543222]
[1773569185526,14.085253,88.46,88.416,3.93543222]
[1773569186026,3.913253,88.459,88.416,3.93543222]
[1773569186631,3.913253,88.459,88.418,3.93543222]
[1773569188627,3.913253,88.457,88.418,3.93543222]
[1773569192134,3.913253,88.453,88.402,3.93543222]
[1773569193534,10.174,88.447,88.402,3.93543222]
[1773569193736,3.913253,88.446,88.402,3.93543222]
[1773569194237,3.913253,88.444,88.402,3.93543222]
[1773569195027,10.174,88.442,88.402,3.93543222]
[1773569195332,3.913253,88.441,88.402,3.93543222]
[1773569195532,3.913253,88.441,88.386,21.13329719]
[1773569195836,3.913253,88.441,88.387,3.93543222]
[1773569196635,3.913253,88.43,88.387,3.93543222]
[1773569199844,3.913253,88.423,88.387,3.93543222]
[1773569200940,14.088253,88.433,88.387,3.93543222]
[1773569201733,14.087253,88.443,88.39,3.93543222]
[1773569202438,10.173,88.452,88.403,3.93543222]
[1773569203642,10.173,88.452,88.406,3.93543222]
[1773569205045,14.086253,88.452,88.406,3.93543222]
[1773569205943,3.913253,88.451,88.406,3.93543222]
[1773569210950,3.913253,88.448,88.406,3.93543222]
[1773569212351,3.913253,88.448,88.373,3.72514436]
[1773569213754,10.175,88.431,88.389,3.72514436]
[1773569213949,35.58,88.479,88.374,3.72514436]
[1773569213950,3.69243981,88.43,88.374,3.72514436]
[1773569215753,3.69243981,88.43,88.347,21.13329719]
[1773569215754,10.176,88.429,88.386,3.72514436]
[1773569216555,10.176,88.427,88.386,3.72514436]
[1773569217556,13.86843981,88.427,88.386,3.72514436]
[1773569220460,3.69243981,88.426,88.386,3.72514436]
[1773569221462,10.176,88.425,88.386,3.72514436]
[1773569223160,13.86843981,88.425,88.386,3.72514436]
[1773569223562,3.69243981,88.425,88.386,3.72514436]
[1773569223764,3.69243981,88.435,88.386,3.72514436]
[1773569224561,3.69243981,88.435,88.395,3.72514436]
[1773569225568,3.69243981,88.424,88.381,3.72514436]
[1773569225756,3.69243981,88.424,88.378,10.181]
[1773569227559,10.177,88.422,88.369,13.90814436]
[1773569227763,3.69243981,88.421,88.37,3.72514436]
[1773569228154,3.69243981,88.418,88.37,3.72514436]
[1773569228356,3.69243981,88.418,88.356,3.72514436]
[1773569228562,3.69243981,88.418,88.34,3.72514436]
[1773569229564,3.69243981,88.4,88.348,3.72514436]
[1773569230766,3.69243981,88.4,88.35,3.72514436]
[1773569231768,3.69243981,88.4,88.353,3.72514436]
[1773569232468,3.69243981,88.4,88.355,3.72514436]
[1773569232864,3.69243981,88.4,88.335,3.72514436]
[1773569233065,3.69243981,88.4,88.346,10.185]
[1773569233264,3.69243981,88.4,88.347,3.72514436]
[1773569234670,3.69243981,88.398,88.347,3.72514436]
[1773569235569,3.69243981,88.395,88.347,3.72514436]
[1773569237569,3.69243981,88.407,88.341,3.72514436]
[1773569238073,3.69243981,88.388,88.341,3.72514436]
[1773569239569,3.69243981,88.386,88.341,3.72514436]
[1773569240167,10.181,88.381,88.341,3.72514436]
[1773569241075,13.87343981,88.381,88.341,3.72514436]
[1773569241275,3.69243981,88.38,88.341,3.72514436]
[1773569244077,4.05383649,88.377,88.33,13.99773434]
[1773569244583,4.05383649,88.377,88.331,3.81073434]
[1773569246278,4.05383649,88.377,88.294,35.58]
[1773569246279,4.05383649,88.401,88.335,3.81073434]
[1773569246785,4.05383649,88.398,88.304,3.81073434]
[1773569247485,4.05383649,88.398,88.306,3.81073434]
[1773569247688,4.05383649,88.395,88.34,3.81073434]
[1773569248680,4.05383649,88.393,88.341,10.186]
[1773569248886,4.05383649,88.393,88.342,3.81073434]
[1773569250489,4.05383649,88.393,88.353,10.184]
[1773569250688,4.05383649,88.393,88.354,3.81073434]
[1773569251892,4.05383649,88.393,88.356,3.81073434]
[1773569254595,4.05383649,88.407,88.356,3.81073434]
[1773569256492,4.05383649,88.407,88.36,3.81073434]
[1773569256797,4.05383649,88.418,88.36,3.81073434]
[1773569256997,4.05383649,88.441,88.36,3.81073434]
[1773569257196,4.05383649,88.441,88.388,3.81073434]
[1773569257891,4.05383649,88.441,88.391,3.81073434]
[1773569261894,4.05383649,88.436,88.391,3.81073434]
[1773569263497,10.175,88.435,88.391,3.81073434]
[1773569263697,4.05383649,88.434,88.391,3.81073434]
[1773569265196,10.176,88.425,88.391,3.81073434]
[1773569265395,4.05383649,88.434,88.391,3.81073434]
[1773569265796,4.05383649,88.434,88.393,3.81073434]
[1773569266702,4.05383649,88.443,88.395,3.81073434]
[1773569267508,4.05383649,88.454,88.405,3.81073434]
[1773569268597,4.05383649,88.454,88.408,3.81073434]
[1773569269104,4.05383649,88.454,88.411,3.81073434]
[1773569271406,3.66027873,88.453,88.411,3.81073434]
[1773569271710,3.66027873,88.453,88.4,3.98353606]
[1773569272611,3.83426446,88.448,88.4,3.98353606]
[1773569273609,3.83426446,88.446,88.4,3.98353606]
[1773569275413,3.83426446,88.436,88.383,3.71378191]
[1773569276307,3.83426446,88.436,88.385,3.71378191]
[1773569277612,3.83426446,88.436,88.392,3.71378191]
[1773569289918,3.83426446,88.436,88.364,21.13329719]
[1773569289919,3.83426446,88.431,88.388,3.71378191]
[1773569296622,10.176,88.425,88.388,3.71378191]
[1773569302934,13.91464635,88.425,88.388,3.71378191]
[1773569305329,3.73864635,88.424,88.388,3.71378191]
[1773569305535,10.5203153,88.47,88.388,3.71378191]
[1773569305536,3.73864635,88.422,88.388,3.71378191]
[1773569307037,3.73864635,88.42,88.378,3.70375084]
[1773569309940,3.73864635,88.417,88.378,3.70375084]
[1773569313543,10.178,88.413,88.378,3.70375084]
[1773569314644,3.73864635,88.45,88.378,3.70375084]
[1773569314850,3.73864635,88.45,88.383,3.70375084]
[1773569315242,3.73864635,88.45,88.384,3.70375084]
[1773569316550,10.173,88.448,88.396,10.179]
[1773569316752,3.73864635,88.447,88.397,3.70375084]
[1773569317547,3.73864635,88.442,88.397,3.70375084]
[1773569326255,3.73864635,88.439,88.397,3.70375084]
[1773569326457,3.73864635,88.439,88.387,3.70375084]
[1773569327554,3.73864635,88.427,88.387,3.70375084]
[1773569332657,10.176,88.424,88.387,3.70375084]
[1773569339367,14.0573207,88.424,88.387,3.70375084]
[1773569339865,3.8813207,88.423,88.387,3.70375084]
[1773569341168,3.8813207,88.423,88.39,3.83030592]
[1773569341964,10.175,88.432,88.39,3.83030592]
[1773569342165,14.0563207,88.432,88.39,3.83030592]
[1773569342469,3.8813207,88.431,88.39,3.83030592]
[1773569343065,3.8813207,88.431,88.39,14.01030592]
[1773569343368,3.8813207,88.431,88.391,3.83030592]
[1773569344667,3.8813207,88.431,88.384,21.13329719]
[1773569344668,3.8813207,88.431,88.394,3.83030592]
[1773569345267,3.8813207,88.431,88.397,10.179]
[1773569345471,3.8813207,88.431,88.398,3.83030592]
[1773569346370,3.8813207,88.431,88.388,3.83030592]
[1773569347068,3.8813207,88.431,88.391,3.83030592]
[1773569347670,3.8813207,88.431,88.394,3.83030592]
[1773569348673,3.8813207,88.431,88.396,3.83030592]
[1773569355381,35.58,88.445,88.408,3.83030592]
[1773569355582,39.4613207,88.445,88.408,3.83030592]
[1773569356069,3.8813207,88.444,88.408,3.83030592]
[1773569357279,3.8813207,88.444,88.397,14.00930592]
[1773569357479,3.8813207,88.444,88.389,3.83030592]
[1773569358286,3.8813207,88.444,88.394,3.83030592]
[1773569359186,3.8813207,88.441,88.394,3.83030592]
[1773569360687,3.8813207,88.441,88.395,3.83030592]
[1773569362691,3.8813207,88.441,88.396,10.179]
[1773569363989,3.8813207,88.441,88.396,14.04853615]
[1773569364489,3.8813207,88.441,88.397,3.86953615]
[1773569364990,3.8813207,88.441,88.399,3.86953615]
[1773569366691,3.8813207,88.441,88.388,21.13329719]
[1773569366692,3.8813207,88.441,88.401,3.86953615]
[1773569367492,3.8813207,88.441,88.403,10.179]
[1773569367693,3.8813207,88.441,88.404,3.86953615]
[1773569368796,35.58,88.445,88.406,3.86953615]
[1773569369894,3.74803725,88.456,88.408,3.86953615]
[1773569371491,3.74803725,88.456,88.413,10.177]
[1773569371696,3.74803725,88.456,88.414,3.86953615]
[1773569374800,3.74803725,88.456,88.415,14.04653615]
[1773569375695,3.74803725,88.456,88.416,3.86953615]
[1773569380696,3.74803725,88.451,88.416,3.86953615]
[1773569398628,3.79661436,88.46,88.416,3.86953615]
[1773569398924,35.6,88.461,88.416,3.86953615]
[1773569399120,35.6,88.461,88.417,3.84111531]
[1773569400525,35.6,88.461,88.431,10.175]
[1773569400823,35.6,88.461,88.432,3.84111531]
[1773569401020,3.79661436,88.481,88.432,3.84111531]
[1773569401225,3.79661436,88.481,88.434,3.84111531]
[1773569402531,3.79661436,88.481,88.436,3.84111531]
[1773569403128,3.79661436,88.481,88.445,3.84111531]
[1773569410134,35.6,88.483,88.447,3.84111531]
[1773569411535,35.6,88.483,88.449,3.84111531]
[1773569416939,3.79661436,88.482,88.449,3.84111531]
[1773569421545,3.79661436,88.482,88.424,3.84111531]
[1773569423543,3.79661436,88.482,88.439,3.65557864]
[1773569424646,3.79661436,88.482,88.435,3.65557864]
[1773569427653,3.79661436,88.482,88.439,3.65557864]
[1773569428850,35.6,88.483,88.4,5.0]
[1773569428851,35.6,88.483,88.441,3.65557864]
[1773569430553,35.6,88.483,88.446,3.65557864]
[1773569432551,3.88604506,88.482,88.435,10.175]
[1773569434653,3.88604506,88.481,88.435,10.175]
[1773569436456,3.88604506,88.481,88.434,3.65557864]
[1773569436457,3.88604506,88.479,88.427,10.176]
[1773569437766,3.88604506,88.479,88.427,13.83157864]
[1773569440461,3.88604506,88.479,88.429,13.83157864]
[1773569440859,3.88604506,88.479,88.43,3.65557864]
[1773569444062,10.17,88.478,88.43,3.65557864]
[1773569444264,3.88604506,88.477,88.43,3.65557864]
[1773569444963,3.88604506,88.475,88.43,3.65557864]
[1773569448071,3.88604506,88.472,88.421,10.176]
[1773569449670,3.88604506,88.47,88.421,10.176]
[1773569450573,3.88604506,88.467,88.421,10.176]
[1773569452874,3.88604506,88.467,88.421,13.90791056]
[1773569453873,3.88604506,88.467,88.422,3.73191056]
[1773569457179,3.88604506,88.467,88.423,10.176]
[1773569457478,3.88604506,88.467,88.424,3.73191056]
[1773569457772,3.88604506,88.467,88.433,3.73191056]
[1773569457979,3.97236629,88.478,88.433,3.73191056]
[1773569459677,3.97236629,88.478,88.435,3.73191056]
[1773569461577,3.97236629,88.476,88.435,3.73191056]
[1773569461783,3.97236629,88.476,88.426,10.176]
[1773569462584,3.97236629,88.474,88.427,3.73191056]
[1773569465081,3.97236629,88.472,88.427,3.73191056]
[1773569468789,3.97236629,88.47,88.427,3.73191056]
[1773569470286,10.172,88.462,88.427,3.73191056]
[1773569470490,3.97236629,88.47,88.427,3.73191056]
[1773569471487,14.14336629,88.47,88.427,3.73191056]
[1773569471686,3.97236629,88.469,88.427,3.73191056]
[1773569476294,3.97236629,88.466,88.427,3.73191056]
[1773569478998,3.97236629,88.461,88.427,3.73191056]
[1773569479598,3.97236629,88.461,88.412,3.73191056]
[1773569480492,3.97236629,88.461,88.418,3.73191056]
[1773569490712,4.04089149,88.459,88.418,3.73191056]
[1773569491514,14.21289149,88.458,88.418,3.73191056]
[1773569491813,4.04089149,88.457,88.418,3.73191056]
[1773569499523,4.04089149,88.457,88.409,10.178]
[1773569499922,4.04089149,88.454,88.41,3.75442316]
[1773569501718,4.04089149,88.451,88.41,3.75442316]
[1773569505722,4.04089149,88.477,88.415,3.75442316]
[1773569505924,4.04089149,88.476,88.415,3.75442316]
[1773569506129,4.04089149,88.476,88.394,35.6]
[1773569506130,4.04089149,88.475,88.417,3.75442316]
[1773569507226,4.04089149,88.475,88.416,21.15666355]
[1773569507227,4.04089149,88.475,88.431,3.75442316]
[1773569508628,4.04089149,88.475,88.434,3.75442316]
[1773569508820,35.6,88.482,88.434,3.75442316]
[1773569509129,39.64089149,88.482,88.434,3.75442316]
[1773569509526,39.64089149,88.482,88.437,3.75442316]
[1773569509722,4.04089149,88.492,88.437,3.75442316]
[1773569510533,4.04089149,88.492,88.439,10.174]
[1773569510721,4.04089149,88.492,88.44,3.75442316]
[1773569511532,3.91013831,88.504,88.444,3.83850973]
[1773569512626,3.91013831,88.504,88.447,3.81780495]
[1773569516633,3.66917718,88.5,88.447,3.81780495]
[1773569517630,3.66917718,88.498,88.447,3.81780495]
[1773569519033,3.66917718,88.498,88.451,3.81780495]
[1773569519841,3.66917718,88.498,88.454,3.81780495]
[1773569520846,3.66917718,88.498,88.457,3.81780495]
[1773569522444,3.66917718,88.498,88.46,3.81780495]
[1773569522649,35.6,88.499,88.46,3.81780495]
[1773569523650,35.6,88.499,88.464,3.81780495]
[1773569524548,35.6,88.499,88.467,3.81780495]
[1773569526150,3.66917718,88.518,88.469,3.81780495]
[1773569526454,35.58,88.52,88.469,3.81780495]
[1773569527546,35.58,88.52,88.471,3.81780495]
[1773569527751,3.66917718,88.559,88.471,3.81780495]
[1773569529360,3.66917718,88.557,88.471,3.81780495]
[1773569529547,3.66917718,88.544,88.491,3.81780495]
[1773569529750,3.66917718,88.542,88.491,3.81780495]
[1773569530457,3.66917718,88.542,88.495,3.81780495]
[1773569531049,3.66917718,88.542,88.499,3.81780495]
[1773569532561,3.66917718,88.54,88.499,3.81780495]
[1773569533958,35.58,88.543,88.501,3.81780495]
[1773569535563,35.58,88.543,88.503,3.81780495]
[1773569536365,35.58,88.543,88.505,3.81780495]
[1773569539363,35.58,88.543,88.507,3.81780495]
[1773569540656,35.58,88.543,88.512,3.81780495]
[1773569540861,33.83366644,88.543,88.512,3.81780495]
[1773569542861,3.87789489,88.542,88.49,3.8861506]
[1773569543165,3.87789489,88.54,88.49,3.8861506]
[1773569543364,3.87789489,88.538,88.49,3.8861506]
[1773569543561,35.58,88.539,88.45,20.347]
[1773569543562,3.87789489,88.535,88.485,10.169]
[1773569543759,3.87789489,88.535,88.441,3.8861506]
[1773569545561,3.87789489,88.525,88.476,10.17]
[1773569551864,3.87789489,88.521,88.476,10.17]
[1773569555266,3.87789489,88.517,88.467,3.8861506]
[1773569556270,3.87789489,88.515,88.467,3.8861506]
[1773569560675,10.166,88.514,88.467,3.8861506]
[1773569560875,3.87789489,88.513,88.467,3.8861506]
[1773569562869,3.87789489,88.513,88.473,3.8861506]
[1773569566475,3.87789489,88.511,88.464,10.171]
[1773569566873,3.87789489,88.511,88.464,14.0571506]
[1773569567675,3.87789489,88.509,88.464,14.0571506]
[1773569568078,3.87789489,88.503,88.455,10.173]
[1773569568578,3.87789489,88.501,88.455,10.173]
[1773569568779,3.87789489,88.501,88.456,3.8861506]
[1773569569486,3.87789489,88.491,88.444,3.8861506]
[1773569570683,3.87789489,88.489,88.445,3.8861506]
[1773569571780,3.87789489,88.489,88.447,4.00509909]
[1773569571979,4.02540641,88.537,88.447,4.00509909]
[1773569573585,14.19140641,88.514,88.471,4.00509909]
[1773569574381,14.19140641,88.514,88.475,4.00509909]
[1773569574382,4.02540641,88.514,88.475,4.00509909]
[1773569577887,10.165,88.522,88.475,4.00509909]
[1773569578084,14.19040641,88.522,88.478,4.00509909]
[1773569578287,4.02540641,88.521,88.478,4.00509909]
[1773569580692,4.02540641,88.521,88.481,4.00509909]
[1773569588588,10.165,88.524,88.481,4.00509909]
[1773569591105,10.165,88.524,88.483,4.00509909]
[1773569595014,14.19040641,88.524,88.483,4.00509909]
[1773569599116,4.02540641,88.523,88.483,4.00509909]
[1773569605324,4.02540641,88.523,88.485,3.6915067]
[1773569609430,4.02540641,88.523,88.477,10.17]
[1773569610628,4.02820098,88.521,88.468,10.171]
[1773569611231,4.02820098,88.521,88.469,3.6915067]
[1773569611732,4.02820098,88.517,88.469,3.6915067]
[1773569612232,4.02820098,88.517,88.473,3.6915067]
[1773569612832,4.02820098,88.517,88.475,3.6915067]
[1773569614635,4.02820098,88.517,88.477,3.6915067]
[1773569629547,4.02820098,88.517,88.479,3.6915067]
[1773569630638,4.02820098,88.517,88.48,10.17]
[1773569631847,4.02820098,88.517,88.474,21.15666355]
[1773569632048,4.02820098,88.517,88.47,3.82036272]
[1773569633648,4.00456119,88.507,88.47,3.82036272]
[1773569640544,4.00456119,88.507,88.455,21.15666355]
[1773569640545,4.00456119,88.507,88.471,10.171]
[1773569640751,10.165,88.518,88.472,3.82036272]
[1773569641052,14.16956119,88.518,88.472,3.82036272]
[1773569641752,4.00456119,88.517,88.476,3.82036272]
[1773569644054,4.00456119,88.517,88.479,3.82036272]
[1773569647559,4.00456119,88.517,88.48,3.82036272]
[1773569651558,4.00456119,88.517,88.481,3.82036272]
[1773569652762,4.00456119,88.527,88.482,3.82036272]
[1773569653761,4.00456119,88.527,88.487,3.82036272]
[1773569654059,4.00456119,88.538,88.487,3.82036272]
[1773569655559,4.00456119,88.538,88.491,3.82036272]
[1773569660767,4.00456119,88.538,88.493,3.82036272]
[1773569666270,4.00456119,88.538,88.495,3.77208896]
[1773569673077,4.00456119,88.538,88.497,10.168]
[1773569673270,4.00456119,88.538,88.498,3.77208896]
[1773569680983,10.162,88.546,88.5,3.77208896]
[1773569681680,3.78669727,88.545,88.5,3.77208896]
[1773569682588,3.78669727,88.545,88.502,3.77208896]
[1773569683687,3.78669727,88.545,88.504,3.77208896]
[1773569686289,3.78669727,88.545,88.507,3.77208896]
[1773569687592,3.78669727,88.545,88.509,3.77208896]
[1773569691399,10.161,88.553,88.509,3.77208896]
[1773569693794,14.06946044,88.553,88.509,3.77208896]
[1773569694699,3.90846044,88.552,88.509,3.77208896]
[1773569695091,3.90846044,88.552,88.512,3.90630193]
[1773569697893,3.90846044,88.552,88.503,10.167]
[1773569699602,3.90846044,88.55,88.503,14.07330193]
[1773569700403,35.58,88.555,88.49,21.15666355]
[1773569700404,3.90846044,88.546,88.49,21.15666355]
[1773569700605,3.90846044,88.546,88.482,3.90630193]
[1773569701508,3.90846044,88.529,88.482,3.90630193]
[1773569702414,3.90846044,88.529,88.483,10.169]
[1773569702706,3.90846044,88.529,88.484,3.90630193]
[1773569703513,3.90846044,88.529,88.488,3.90630193]
[1773569705109,3.90846044,88.546,88.491,3.90630193]
[1773569706509,3.90846044,88.546,88.493,10.168]
[1773569706811,3.90846044,88.546,88.494,3.90630193]
[1773569707212,3.90846044,88.546,88.501,3.90630193]
[1773569707509,3.90846044,88.544,88.501,3.90630193]
[1773569707711,3.90846044,88.544,88.479,3.90630193]
[1773569708610,3.90846044,88.541,88.492,3.90630193]
[1773569712913,3.90846044,88.541,88.493,10.168]
[1773569713111,3.90846044,88.541,88.494,3.90630193]
[1773569713312,3.90846044,88.538,88.494,3.90630193]
[1773569716215,3.90846044,88.538,88.496,3.90630193]
[1773569717609,3.90846044,88.538,88.482,21.15666355]
[1773569717610,3.90846044,88.538,88.498,3.90630193]
[1773569718616,3.90846044,88.538,88.501,3.90630193]
[1773569724314,3.90846044,88.538,88.502,10.167]
[1773569724521,3.90846044,88.538,88.503,4.05253144]
[1773569741934,10.54546373,88.57,88.455,35.58]
[1773569741935,3.7121169,88.553,88.513,4.05253144]
[1773569743628,3.7121169,88.553,88.516,10.166]
[1773569744032,3.7121169,88.553,88.516,14.21853144]
[1773569744530,3.7121169,88.553,88.517,4.05253144]
[1773569748140,3.7121169,88.553,88.502,4.05253144]
[1773569749646,3.7121169,88.542,88.502,4.05253144]
[1773569755147,3.99401091,88.539,88.491,14.1020269]
[1773569755549,3.99401091,88.539,88.492,3.9340269]
[1773569755750,10.163,88.536,88.494,3.9340269]
[1773569756150,14.15701091,88.536,88.494,3.9340269]
[1773569756650,3.99401091,88.535,88.494,3.9340269]
[1773569761243,3.99401091,88.535,88.496,3.9340269]
[1773569761951,3.99401091,88.535,88.499,3.9340269]
[1773569772868,3.99401091,88.535,88.498,10.168]
[1773569775067,3.99401091,88.535,88.496,3.9340269]
[1773569775369,3.99401091,88.535,88.486,3.9340269]
[1773569776668,3.99401091,88.533,88.486,3.9340269]
[1773569777674,3.99401091,88.529,88.486,3.9340269]
[1773569783776,3.87897723,88.526,88.476,3.73826936]
[1773569784782,3.87897723,88.517,88.476,3.73826936]
[1773569786679,3.87897723,88.513,88.476,3.73826936]
[1773569789474,3.87897723,88.513,88.473,10.171]
[1773569790368,3.87897723,88.513,88.473,13.90926936]
[1773569795287,3.87897723,88.513,88.474,3.73826936]
[1773569821411,3.74391271,88.533,88.474,3.73826936]
[1773569821612,3.74391271,88.533,88.475,3.89313438]
[1773569822211,10.163,88.539,88.491,3.89313438]
[1773569824919,3.74391271,88.558,88.495,3.89313438]
[1773569825115,3.74391271,88.558,88.497,3.89313438]
[1773569825914,3.74391271,88.558,88.501,3.89313438]
[1773569826509,10.16,88.563,88.517,10.165]
[1773569826710,10.16,88.563,88.518,3.89313438]
[1773569827614,13.90391271,88.563,88.518,3.89313438]
[1773569829713,3.74391271,88.562,88.518,3.89313438]
[1773569838518,3.74391271,88.562,88.52,3.89313438]
[1773569842132,3.74391271,88.562,88.524,3.77299095]
[1773569843532,3.73439665,88.573,88.527,3.77299095]
[1773569844633,3.73439665,88.573,88.529,3.77299095]
[1773569853742,3.73439665,88.571,88.518,3.77299095]
[1773569854648,3.73439665,88.56,88.518,3.77299095]
[1773569857552,3.73439665,88.56,88.52,3.77299095]
[1773569863962,3.73439665,88.56,88.523,3.77299095]
[1773569872959,35.56,88.581,88.516,3.94501099]
[1773569872960,3.72451215,88.558,88.516,3.94501099]
[1773569881261,13.88451215,88.567,88.518,3.94501099]
[1773569881465,3.72451215,88.566,88.518,3.94501099]
[1773569893970,3.72451215,88.566,88.52,3.94501099]
[1773569896475,3.72451215,88.576,88.526,3.94501099]
[1773569897577,3.72451215,88.576,88.531,3.94501099]
[1773569898584,3.72451215,88.576,88.534,3.94501099]
[1773569903788,10.158,88.586,88.536,3.92847107]
[1773569904286,13.84706676,88.586,88.536,3.92847107]
[1773569904488,3.68906676,88.585,88.536,3.92847107]
[1773569905590,3.68906676,88.585,88.538,3.92847107]
[1773569906084,3.68906676,88.585,88.541,10.163]
[1773569906288,35.56,88.593,88.542,3.92847107]
[1773569906487,39.24906676,88.593,88.542,3.92847107]
[1773569907188,3.68906676,88.592,88.542,3.92847107]
[1773569907589,3.68906676,88.592,88.548,3.92847107]
[1773569915304,3.68906676,88.592,88.547,10.162]
[1773569915305,3.68906676,88.592,88.551,3.92847107]
[1773569917003,35.56,88.593,88.553,3.92847107]
[1773569918504,35.56,88.593,88.561,10.16]
[1773569918702,35.56,88.593,88.562,3.92847107]
[1773569924311,3.68906676,88.602,88.566,10.16]
[1773569924904,3.68906676,88.602,88.567,3.92847107]
[1773569926205,3.68906676,88.61,88.567,3.92847107]
[1773569928810,3.68906676,88.61,88.573,3.92847107]
[1773569930515,3.68906676,88.61,88.574,3.92847107]
[1773569930813,3.81879718,88.632,88.574,3.92847107]
[1773569931207,35.54,88.637,88.592,3.66860669]
[1773569932621,35.54,88.637,88.603,3.86135326]
[1773569934320,39.21278164,88.637,88.603,3.86135326]
[1773569937124,35.54,88.637,88.605,3.86135326]
[1773569938521,35.54,88.637,88.565,21.15666355]
[1773569938522,3.67278164,88.636,88.6,10.156]
[1773569939116,3.67278164,88.636,88.605,10.155]
[1773569939524,35.54,88.637,88.606,3.86135326]
[1773569940521,35.54,88.637,88.609,3.86135326]
[1773569941116,3.67278164,88.647,88.609,3.86135326]
[1773569941624,3.67278164,88.647,88.573,3.86135326]
[1773569942521,3.67278164,88.647,88.602,10.156]
[1773569944326,3.67278164,88.647,88.603,3.86135326]
[1773569945427,3.67278164,88.657,88.605,3.86135326]
[1773569946528,3.67278164,88.657,88.615,3.86135326]
[1773569947823,3.67278164,88.657,88.62,3.86135326]
[1773569951421,3.67278164,88.657,88.623,3.86135326]
[1773569951627,3.67278164,88.671,88.623,3.86135326]
[1773569952526,3.67278164,88.671,88.625,3.86135326]
[1773569953831,3.67278164,88.682,88.63,3.86135326]
[1773569954427,3.67278164,88.68,88.63,3.86135326]
[1773569954832,3.67278164,88.68,88.621,10.154]
[1773569955132,3.67278164,88.68,88.622,3.86135326]
[1773569955832,3.67278164,88.68,88.625,3.86135326]
[1773569957333,3.67278164,88.669,88.625,3.86135326]
[1773569960128,3.67278164,88.663,88.612,3.86135326]
[1773569961332,35.52,88.692,88.612,3.86135326]
[1773569961333,3.67278164,88.661,88.612,3.86135326]
[1773569962326,3.67278164,88.661,88.587,3.81200192]
[1773569963536,4.00544914,88.659,88.605,3.81200192]
[1773569964533,4.00544914,88.659,88.608,3.81200192]
[1773569966833,4.00544914,88.659,88.61,3.81200192]
[1773569967136,4.00544914,88.668,88.61,3.81200192]
[1773569968640,4.00544914,88.668,88.586,35.52]
[1773569968641,4.00544914,88.668,88.617,3.81200192]
[1773569970538,4.00544914,88.668,88.618,10.154]
[1773569970735,4.00544914,88.668,88.619,3.81200192]
[1773569974842,4.00544914,88.665,88.619,3.81200192]
[1773569975042,4.00544914,88.665,88.594,3.81200192]
[1773569976241,4.00544914,88.648,88.594,3.81200192]
[1773569977846,4.00544914,88.643,88.594,3.81200192]
[1773569982344,4.00544914,88.641,88.594,3.81200192]
[1773569983844,4.00544914,88.639,88.594,3.81200192]
[1773569985654,4.00544914,88.635,88.594,3.81200192]
[1773569995255,3.68603401,88.633,88.583,3.90188163]
[1773569996559,3.68603401,88.622,88.583,3.90188163]
[1773569998258,3.68603401,88.618,88.583,3.90188163]
[1773570001363,3.68603401,88.618,88.572,3.90188163]
[1773570002563,3.68603401,88.616,88.572,3.90188163]
[1773570004660,10.154,88.617,88.572,3.90188163]
[1773570004867,10.153,88.625,88.572,3.90188163]
[1773570005668,10.153,88.625,88.574,3.90188163]
[1773570005964,3.68603401,88.625,88.574,3.90188163]
[1773570006567,3.68603401,88.625,88.577,3.90188163]
[1773570014076,10.53718546,88.686,88.577,3.90188163]
[1773570014274,10.15,88.65,88.595,3.90188163]
[1773570014574,16.68840819,88.69,88.595,3.90188163]
[1773570014976,8.45677883,88.69,88.595,3.90188163]
[1773570015374,35.54,88.691,88.595,3.90188163]
[1773570015575,10.148,88.668,88.608,3.90188163]
[1773570015976,0.62374522,88.667,88.608,3.90188163]
[1773570016775,0.62374522,88.667,88.613,3.90188163]
[1773570017175,0.64775272,88.69,88.613,3.90188163]
[1773570017975,0.64866425,88.678,88.619,3.90188163]
[1773570019578,0.63775401,88.675,88.619,3.90188163]
[1773570019880,0.63775401,88.675,88.623,3.90188163]
[1773570021075,0.63775401,88.675,88.626,10.153]
[1773570021277,0.63775401,88.675,88.627,3.90188163]
[1773570021979,0.62679283,88.705,88.651,3.90196358]
[1773570023577,0.49691723,88.702,88.651,3.90196358]
[1773570024681,35.52,88.718,88.651,3.90196358]
[1773570024682,0.51909133,88.699,88.651,3.90196358]
[1773570027281,0.53477276,88.696,88.639,3.90196358]
[1773570028580,0.53477276,88.696,88.646,3.90196358]
[1773570030685,0.53477276,88.696,88.612,35.52]